bitfinex-derivatives/quotes_BTCF0:USTF0_20251228
["timestamp","ask_amount","ask_price","bid_price","bid_amount"]
[1766886282229,0.06145169,87873.0,87863.0,0.0113891]
[1766886283532,0.00017072,87873.0,87863.0,0.0113891]
[1766886284936,0.00017072,87873.0,87865.0,0.011389]
[1766886286642,0.02425286,87872.0,87865.0,0.011389]
[1766886286831,0.02425286,87871.0,87865.0,0.011389]
[1766886287032,6e-08,87870.0,87865.0,0.011389]
[1766886287232,0.00017072,87873.0,87865.0,0.011389]
[1766886296153,0.057,87877.0,87865.0,0.011389]
[1766886296843,0.057,87877.0,87867.0,0.0113887]
[1766886300849,0.057,87877.0,87870.0,0.0113883]
[1766886301148,0.057,87877.0,87863.0,0.00017072]
[1766886301847,0.057,87877.0,87867.0,0.0113887]
[1766886302548,0.02416249,87876.0,87867.0,0.0113887]
[1766886302753,0.02416249,87875.0,87867.0,0.0113887]
[1766886302956,0.02416249,87874.0,87867.0,0.0113887]
[1766886303253,0.02416249,87873.0,87867.0,0.0113887]
[1766886303553,0.02416249,87872.0,87867.0,0.0113887]
[1766886303755,0.02416249,87871.0,87867.0,0.0113887]
[1766886303949,9e-08,87870.0,87867.0,0.0113887]
[1766886304149,0.057,87877.0,87867.0,0.0113887]
[1766886305353,0.057,87877.0,87869.0,0.0113884]
[1766886305949,0.057,87877.0,87863.0,0.00017072]
[1766886308254,0.057,87877.0,87867.0,0.0113887]
[1766886311864,0.057,87877.0,87864.0,0.0113891]
[1766886312157,0.057,87877.0,87866.0,0.0113888]
[1766886315664,0.057,87877.0,87863.0,0.00017072]
[1766886317162,0.057,87877.0,87867.0,0.0113886]
[1766886323566,0.11828097,87877.0,87867.0,0.0113886]
[1766886324561,0.02409315,87876.0,87863.0,0.00017072]
[1766886324856,0.02409315,87875.0,87863.0,0.00017072]
[1766886325167,0.02409315,87874.0,87866.0,0.0113888]
[1766886325359,0.02409315,87873.0,87866.0,0.0113888]
[1766886325561,0.02409315,87872.0,87866.0,0.0113888]
[1766886325761,0.02409315,87871.0,87866.0,0.0113888]
[1766886325961,5e-08,87870.0,87866.0,0.0113888]
[1766886326162,0.11828097,87877.0,87866.0,0.0113888]
[1766886327364,0.11828097,87877.0,87868.0,0.0113886]
[1766886327662,0.11828097,87877.0,87863.0,0.00017072]
[1766886329166,0.11828097,87877.0,87868.0,0.0113886]
[1766886329570,0.11828097,87877.0,87863.0,0.00017072]
[1766886329864,0.11828097,87877.0,87866.0,0.0113888]
[1766886330769,0.11828097,87877.0,87863.0,0.01155992]
[1766886332159,0.057,87877.0,87860.0,0.11413373]
[1766886332354,0.0113876,87876.0,87861.0,0.0130865]
[1766886332559,0.011388,87874.0,87858.0,0.06776]
[1766886334972,0.0683875,87877.0,87858.0,0.06776]
[1766886336464,0.0683875,87877.0,87859.0,0.0113898]
[1766886337372,0.057,87877.0,87859.0,0.0113898]
[1766886337961,0.02409989,87876.0,87859.0,0.0113898]
[1766886338167,0.02409989,87875.0,87859.0,0.0113898]
[1766886338367,0.02409989,87874.0,87859.0,0.0113898]
[1766886338565,0.02409989,87873.0,87859.0,0.0113898]
[1766886338766,0.02409989,87872.0,87859.0,0.0113898]
[1766886338966,0.02409989,87871.0,87859.0,0.0113898]
[1766886339268,0.02409989,87870.0,87859.0,0.0113898]
[1766886339467,0.02409989,87869.0,87859.0,0.0113898]
[1766886339667,0.02409989,87868.0,87859.0,0.0113898]
[1766886339975,0.02409989,87867.0,87859.0,0.0113898]
[1766886340180,0.02409989,87866.0,87859.0,0.0113898]
[1766886340379,0.057,87877.0,87859.0,0.0113898]
[1766886340573,0.02409906,87876.0,87859.0,0.0113898]
[1766886340768,0.02409906,87875.0,87859.0,0.0113898]
[1766886340968,0.02409906,87874.0,87859.0,0.0113898]
[1766886341170,0.02409906,87873.0,87859.0,0.0113898]
[1766886341470,0.02409906,87872.0,87859.0,0.0113898]
[1766886341769,0.02409906,87871.0,87859.0,0.0113898]
[1766886341971,0.02409906,87870.0,87859.0,0.0113898]
[1766886342279,0.02409906,87869.0,87859.0,0.0113898]
[1766886342481,0.02409906,87868.0,87859.0,0.0113898]
[1766886342673,0.02409906,87867.0,87859.0,0.0113898]
[1766886342977,0.02409906,87866.0,87859.0,0.0113898]
[1766886343281,6e-08,87865.0,87859.0,0.0113898]
[1766886343477,0.057,87877.0,87859.0,0.0113898]
[1766886344476,0.0113881,87873.0,87858.0,0.057]
[1766886345275,0.0113877,87876.0,87858.0,0.057]
[1766886345770,0.0113877,87876.0,87859.0,0.0113898]
[1766886349183,0.057,87877.0,87861.0,0.0113895]
[1766886354484,0.06128097,87876.0,87861.0,0.0113895]
[1766886355086,0.08589124,87876.0,87861.0,0.0113895]
[1766886373496,0.06128097,87873.0,87861.0,0.0113895]
[1766886374089,0.08589124,87873.0,87861.0,0.0113895]
[1766886374289,0.02461027,87872.0,87861.0,0.0113895]
[1766886374488,0.02461027,87871.0,87861.0,0.0113895]
[1766886374688,0.02461027,87870.0,87861.0,0.0113895]
[1766886374891,0.02461027,87869.0,87861.0,0.0113895]
[1766886375188,0.02461027,87868.0,87861.0,0.0113895]
[1766886375390,0.02461027,87867.0,87861.0,0.0113895]
[1766886375595,0.02461027,87866.0,87861.0,0.0113895]
[1766886375796,0.06128097,87873.0,87861.0,0.0113895]
[1766886375797,0.02461027,87865.0,87861.0,0.0113895]
[1766886375989,0.02461027,87864.0,87861.0,0.0113895]
[1766886376190,7e-08,87863.0,87861.0,0.0113895]
[1766886376396,0.06128097,87873.0,87861.0,0.0113895]
[1766886383506,0.06128097,87876.0,87861.0,0.0113895]
[1766886388111,0.08569667,87876.0,87861.0,0.0113895]
[1766886390816,0.08569667,87876.0,87859.0,0.057]
[1766886391112,0.08569667,87876.0,87840.0,0.1255405]
[1766886391113,0.0113883,87871.0,87853.0,0.0113905]
[1766886391311,0.0113883,87871.0,87854.0,0.057]
[1766886391512,0.0113886,87869.0,87854.0,0.057]
[1766886391713,0.02441551,87868.0,87854.0,0.057]
[1766886391911,0.02441551,87867.0,87854.0,0.057]
[1766886392110,0.057,87871.0,87854.0,0.057]
[1766886392111,0.02441551,87866.0,87854.0,0.057]
[1766886392418,0.02441551,87865.0,87854.0,0.057]
[1766886392613,0.02441551,87864.0,87854.0,0.057]
[1766886392808,0.02441551,87863.0,87854.0,0.057]
[1766886393011,0.057,87871.0,87854.0,0.057]
[1766886393207,0.02441391,87870.0,87854.0,0.057]
[1766886393410,0.02441391,87869.0,87854.0,0.057]
[1766886393612,0.057,87871.0,87854.0,0.057]
[1766886393613,0.02441391,87868.0,87854.0,0.057]
[1766886393925,0.02441391,87867.0,87854.0,0.057]
[1766886394222,0.02441391,87866.0,87854.0,0.057]
[1766886394410,0.057,87871.0,87854.0,0.057]
[1766886394411,0.02441391,87865.0,87854.0,0.057]
[1766886394612,0.02441391,87864.0,87854.0,0.057]
[1766886394820,0.057,87871.0,87854.0,0.057]
[1766886394821,0.02441391,87863.0,87854.0,0.057]
[1766886395020,0.057,87871.0,87852.0,0.0113906]
[1766886395221,0.02440822,87870.0,87853.0,0.057]
[1766886395522,0.02440822,87869.0,87853.0,0.057]
[1766886395721,0.02440822,87868.0,87853.0,0.057]
[1766886395921,0.02440822,87867.0,87853.0,0.057]
[1766886396110,0.02440822,87866.0,87853.0,0.057]
[1766886396314,0.02440822,87865.0,87853.0,0.057]
[1766886396525,0.02440822,87864.0,87853.0,0.057]
[1766886396713,0.02440822,87863.0,87853.0,0.057]
[1766886397019,0.057,87871.0,87854.0,0.0113904]
[1766886397212,0.02440439,87870.0,87854.0,0.0113904]
[1766886397413,0.02440439,87869.0,87854.0,0.0113904]
[1766886397613,0.02440439,87868.0,87854.0,0.0113904]
[1766886397813,0.02440439,87867.0,87854.0,0.0113904]
[1766886398023,0.02440439,87866.0,87854.0,0.0113904]
[1766886398320,0.02440439,87865.0,87854.0,0.0113904]
[1766886398621,0.02440439,87864.0,87854.0,0.0113904]
[1766886398822,0.02440439,87863.0,87854.0,0.0113904]
[1766886399020,0.057,87871.0,87854.0,0.0113904]
[1766886399221,0.02440164,87870.0,87854.0,0.0113904]
[1766886399520,0.02440164,87869.0,87854.0,0.0113904]
[1766886399721,0.02440164,87868.0,87854.0,0.0113904]
[1766886399909,0.02440164,87867.0,87854.0,0.0113904]
[1766886400114,0.02440164,87866.0,87854.0,0.0113904]
[1766886400312,0.02440164,87865.0,87854.0,0.0113904]
[1766886400614,0.02440164,87864.0,87854.0,0.0113904]
[1766886400814,0.02440164,87863.0,87854.0,0.0113904]
[1766886401014,0.057,87871.0,87854.0,0.0113904]
[1766886401314,0.02440086,87870.0,87854.0,0.0113904]
[1766886401514,0.02440086,87869.0,87854.0,0.0113904]
[1766886401716,0.02440086,87868.0,87854.0,0.0113904]
[1766886401913,0.02440086,87867.0,87854.0,0.0113904]
[1766886402114,0.02440086,87866.0,87854.0,4e-07]
[1766886402320,0.02440086,87865.0,87854.0,0.0113908]
[1766886402623,0.02440086,87864.0,87856.0,0.0113901]
[1766886402815,0.02440086,87863.0,87856.0,0.0113901]
[1766886403016,0.02440086,87862.0,87856.0,0.0113901]
[1766886403220,0.02440086,87861.0,87856.0,0.0113901]
[1766886403523,0.057,87871.0,87856.0,0.0113901]
[1766886403719,0.02440051,87870.0,87856.0,0.0113901]
[1766886404022,0.02440051,87869.0,87856.0,0.0113901]
[1766886404224,0.02440051,87868.0,87856.0,0.0113901]
[1766886404425,0.02440051,87867.0,87856.0,0.0113901]
[1766886404615,0.02440051,87866.0,87856.0,0.0113901]
[1766886404814,0.02440051,87865.0,87856.0,0.0113901]
[1766886405016,0.02440051,87864.0,87856.0,0.0113901]
[1766886405216,0.02440051,87863.0,87856.0,0.0113901]
[1766886405417,0.02440051,87862.0,87856.0,0.0113901]
[1766886405614,0.02440051,87861.0,87856.0,0.0113901]
[1766886405824,0.057,87871.0,87856.0,0.0113901]
[1766886406122,0.02440042,87870.0,87856.0,0.0113901]
[1766886406424,0.02440042,87869.0,87856.0,0.0113901]
[1766886406622,0.02440042,87868.0,87854.0,0.0570004]
[1766886406925,0.057,87871.0,87852.0,0.057]
[1766886406926,0.02440042,87867.0,87852.0,0.057]
[1766886407125,0.02440042,87866.0,87852.0,0.057]
[1766886407418,0.02440042,87865.0,87852.0,0.057]
[1766886407619,0.02440042,87864.0,87852.0,0.057]
[1766886407822,0.02440042,87863.0,87852.0,0.057]
[1766886408022,0.02440042,87862.0,87853.0,0.0113905]
[1766886408326,0.02440042,87861.0,87853.0,0.0113905]
[1766886408528,0.02440042,87860.0,87853.0,0.0113905]
[1766886408826,0.0683883,87871.0,87853.0,0.0113905]
[1766886409030,0.02439769,87870.0,87853.0,0.0113905]
[1766886409216,0.02439769,87869.0,87853.0,0.0113905]
[1766886409415,0.02439769,87868.0,87853.0,0.0113905]
[1766886409616,0.02439769,87867.0,87853.0,0.0113905]
[1766886409825,0.02439769,87866.0,87853.0,0.0113905]
[1766886410125,0.02439769,87865.0,87853.0,0.0113905]
[1766886410315,0.02439769,87864.0,87853.0,0.0113905]
[1766886410511,0.02439769,87863.0,87853.0,0.0113905]
[1766886410725,0.02439769,87862.0,87853.0,0.0113905]
[1766886411025,0.0683883,87871.0,87838.0,0.06132077]
[1766886411026,0.02439769,87861.0,87838.0,0.06132077]
[1766886411227,0.00017072,87858.0,87839.0,0.12476]
[1766886411429,0.02439769,87857.0,87839.0,0.12476]
[1766886411721,0.02439769,87856.0,87839.0,0.12476]
[1766886411931,0.00017072,87858.0,87849.0,0.011391]
[1766886412119,0.02494001,87857.0,87849.0,0.011391]
[1766886412321,0.02494001,87856.0,87849.0,0.011391]
[1766886412520,0.00017072,87858.0,87849.0,0.011391]
[1766886412720,0.02493561,87857.0,87849.0,0.011391]
[1766886412923,0.02493561,87856.0,87849.0,0.011391]
[1766886413121,0.02493543,87855.0,87848.0,0.057]
[1766886413322,0.02493543,87854.0,87843.0,0.0113918]
[1766886413521,0.0249306,87853.0,87843.0,0.0113918]
[1766886413719,0.0249306,87852.0,87843.0,0.0113918]
[1766886413929,0.0249306,87851.0,87843.0,0.0113918]
[1766886414121,0.00017072,87858.0,87845.0,0.0113915]
[1766886414421,0.02493072,87857.0,87845.0,0.0113915]
[1766886414622,0.02493072,87856.0,87845.0,0.0113915]
[1766886414832,0.02493072,87855.0,87845.0,0.0113915]
[1766886415130,0.02493072,87854.0,87845.0,0.0113915]
[1766886415330,0.02493072,87853.0,87845.0,0.0113915]
[1766886415526,0.02493072,87852.0,87844.0,0.057]
[1766886415726,0.02493072,87851.0,87844.0,0.057]
[1766886416033,0.02493072,87850.0,87844.0,0.057]
[1766886416222,0.00017072,87858.0,87844.0,0.057]
[1766886416428,0.02518938,87857.0,87844.0,0.057]
[1766886416628,0.02518938,87856.0,87844.0,0.057]
[1766886416925,0.02518938,87855.0,87844.0,0.057]
[1766886417126,0.02518938,87854.0,87844.0,0.057]
[1766886417328,0.02518938,87853.0,87844.0,0.057]
[1766886417528,0.02518938,87857.0,87844.0,0.057]
[1766886417733,0.00017072,87858.0,87844.0,0.057]
[1766886417926,0.02518758,87857.0,87844.0,0.057]
[1766886418233,0.02518758,87856.0,87844.0,0.057]
[1766886418427,0.02518758,87855.0,87844.0,0.057]
[1766886418627,0.02518758,87854.0,87844.0,0.057]
[1766886418828,0.02518758,87853.0,87844.0,0.057]
[1766886419024,0.02518758,87852.0,87844.0,0.057]
[1766886419224,0.02518758,87851.0,87845.0,0.0456082]
[1766886419421,0.02518758,87850.0,87844.0,0.057]
[1766886419623,0.02518758,87849.0,87844.0,0.057]
[1766886419932,0.0251833,87848.0,87844.0,0.057]
[1766886420123,0.00017072,87858.0,87837.0,0.0113926]
[1766886420323,0.02518321,87857.0,87837.0,0.0113926]
[1766886420524,0.00017072,87858.0,87837.0,0.0113926]
[1766886420525,0.02518321,87856.0,87838.0,0.057]
[1766886420719,0.02518321,87855.0,87838.0,0.057]
[1766886421026,0.02518321,87854.0,87838.0,0.057]
[1766886421339,0.02518321,87853.0,87838.0,0.057]
[1766886421632,0.02518321,87852.0,87838.0,0.057]
[1766886421829,0.02518321,87851.0,87838.0,0.057]
[1766886422029,0.02518321,87850.0,87838.0,0.057]
[1766886422225,0.02518321,87849.0,87838.0,0.057]
[1766886422532,0.02518321,87848.0,87838.0,0.057]
[1766886422727,0.02518321,87847.0,87838.0,0.057]
[1766886422932,0.02518321,87846.0,87838.0,0.057]
[1766886423133,0.01156072,87858.0,87838.0,0.057]
[1766886423323,0.02517665,87857.0,87838.0,0.057]
[1766886423519,0.02517665,87856.0,87838.0,0.057]
[1766886423719,0.02517665,87855.0,87838.0,0.057]
[1766886423926,0.02517665,87854.0,87838.0,0.057]
[1766886424131,0.02517665,87853.0,87839.0,0.0113924]
[1766886424329,0.02517665,87852.0,87839.0,0.0113924]
[1766886424524,0.02517665,87851.0,87839.0,0.0113924]
[1766886424723,0.02517665,87850.0,87839.0,0.0113924]
[1766886424932,0.02517665,87849.0,87839.0,0.0113924]
[1766886425232,0.01156072,87858.0,87839.0,0.0113924]
[1766886425532,0.01156072,87858.0,87838.0,0.057]
[1766886425533,0.0113902,87856.0,87838.0,0.057]
[1766886425724,0.02517185,87855.0,87838.0,0.057]
[1766886426431,0.02517185,87855.0,87836.0,0.0113927]
[1766886426632,0.02517185,87855.0,87837.0,0.057]
[1766886426935,0.02517185,87855.0,87838.0,0.0113925]
[1766886428221,0.02517185,87855.0,87840.0,0.0113922]
[1766886428526,0.02517185,87854.0,87840.0,0.0113922]
[1766886428726,0.02517185,87853.0,87840.0,0.0113922]
[1766886428926,0.02517185,87852.0,87840.0,0.0113922]
[1766886429234,0.02517185,87851.0,87840.0,0.0113922]
[1766886429432,0.02517185,87850.0,87840.0,0.0113922]
[1766886429635,0.02517185,87849.0,87840.0,0.0113922]
[1766886429934,0.02517185,87848.0,87840.0,0.0113922]
[1766886430134,0.00017072,87858.0,87840.0,0.0113922]
[1766886430336,0.02516731,87857.0,87840.0,0.0113922]
[1766886430535,0.02516731,87856.0,87840.0,0.0113922]
[1766886430836,0.02516731,87855.0,87840.0,0.0113922]
[1766886431027,0.02516731,87854.0,87840.0,0.0113922]
[1766886431326,0.02516731,87853.0,87840.0,0.0113922]
[1766886431625,0.02516731,87852.0,87840.0,0.0113922]
[1766886431834,0.02516731,87851.0,87840.0,0.0113922]
[1766886432024,0.02516731,87850.0,87840.0,0.0113922]
[1766886432221,0.02516731,87849.0,87840.0,0.0113922]
[1766886432420,0.02516731,87848.0,87840.0,0.0113922]
[1766886432626,0.00017072,87858.0,87840.0,0.0113922]
[1766886432829,0.02516913,87857.0,87840.0,0.0113922]
[1766886433029,0.02516913,87856.0,87840.0,0.0113922]
[1766886433230,0.02516913,87855.0,87840.0,0.0113922]
[1766886433428,0.02516913,87854.0,87840.0,0.0113922]
[1766886433634,0.02516913,87853.0,87840.0,0.0113922]
[1766886433839,0.02516913,87852.0,87840.0,0.0113922]
[1766886434035,0.02516913,87851.0,87840.0,0.0113922]
[1766886434338,0.02516913,87850.0,87840.0,0.0113922]
[1766886434526,0.02516913,87849.0,87840.0,0.0113922]
[1766886434728,0.02516913,87848.0,87840.0,0.0113922]
[1766886435036,0.00017072,87858.0,87840.0,0.0113922]
[1766886435238,0.02517252,87857.0,87840.0,0.0113922]
[1766886435536,0.02517252,87856.0,87840.0,0.0113922]
[1766886435722,0.02517252,87855.0,87840.0,0.0113922]
[1766886435922,0.00017072,87858.0,87840.0,0.0113922]
[1766886435923,0.02517252,87854.0,87840.0,0.0113922]
[1766886436133,0.02517252,87853.0,87840.0,0.0113922]
[1766886436333,0.02517252,87852.0,87840.0,0.0113922]
[1766886436528,0.02517252,87851.0,87840.0,0.0113922]
[1766886436730,0.02517252,87850.0,87840.0,0.0113922]
[1766886436932,0.02517252,87849.0,87840.0,0.0113922]
[1766886437229,0.02517252,87848.0,87840.0,0.0113922]
[1766886437430,0.02517252,87847.0,87840.0,0.0113922]
[1766886437731,0.00017072,87858.0,87840.0,0.0113922]
[1766886437921,0.02518168,87857.0,87840.0,0.0113922]
[1766886438122,0.02518168,87856.0,87840.0,0.0113922]
[1766886438327,0.02518168,87855.0,87840.0,0.0113922]
[1766886438537,0.02518168,87854.0,87840.0,0.0113922]
[1766886438837,0.02518168,87853.0,87840.0,0.0113922]
[1766886439038,0.02518168,87852.0,87840.0,0.0113922]
[1766886439229,0.02518168,87851.0,87840.0,0.0113922]
[1766886439430,0.02518168,87850.0,87840.0,0.0113922]
[1766886439733,0.02518168,87849.0,87840.0,0.0113922]
[1766886439935,0.02518168,87848.0,87840.0,0.0113922]
[1766886440135,0.02518168,87847.0,87840.0,0.0113922]
[1766886440336,0.02518168,87846.0,87840.0,0.0113922]
[1766886440539,0.02518168,87845.0,87840.0,0.0113922]
[1766886440724,0.0113901,87857.0,87840.0,0.0113922]
[1766886440929,0.02519838,87856.0,87840.0,0.0113922]
[1766886441138,0.02519838,87855.0,87840.0,0.0113922]
[1766886441329,0.02519838,87854.0,87840.0,0.0113922]
[1766886441528,0.02519838,87853.0,87840.0,0.0113922]
[1766886441729,0.0113901,87857.0,87840.0,0.0113922]
[1766886441730,0.02519838,87852.0,87840.0,0.0113922]
[1766886441931,0.02519838,87851.0,87840.0,0.0113922]
[1766886442130,0.0113901,87857.0,87832.0,0.057]
[1766886442131,0.02519838,87850.0,87833.0,0.0113931]
[1766886442438,0.00017072,87858.0,87833.0,0.0113931]
[1766886442439,0.02519838,87849.0,87833.0,0.0113931]
[1766886442640,0.02519838,87848.0,87841.0,0.011392]
[1766886442938,0.02519838,87847.0,87841.0,0.011392]
[1766886443139,0.02519838,87846.0,87841.0,0.011392]
[1766886443339,0.00017072,87858.0,87841.0,0.011392]
[1766886445945,0.00017072,87858.0,87843.0,0.0113918]
[1766886447334,0.06145169,87858.0,87843.0,0.0113918]
[1766886448445,0.00017072,87858.0,87843.0,0.0113918]
[1766886450247,0.00017072,87858.0,87840.0,0.0113922]
[1766886452950,0.01156072,87858.0,87840.0,0.0113922]
[1766886455443,0.02507759,87857.0,87840.0,0.0113922]
[1766886455639,0.02507759,87856.0,87840.0,0.0113922]
[1766886455842,0.02507759,87855.0,87840.0,0.0113922]
[1766886456040,0.02507759,87854.0,87840.0,0.0113922]
[1766886456241,0.02507759,87853.0,87840.0,0.0113922]
[1766886456442,0.02507759,87852.0,87840.0,0.0113922]
[1766886456650,0.02507759,87851.0,87840.0,0.0113922]
[1766886456852,0.02507759,87850.0,87840.0,0.0113922]
[1766886457044,0.01385672,87849.0,87840.0,0.0113922]
[1766886457244,0.01156072,87858.0,87840.0,0.0113922]
[1766886463558,0.07284169,87858.0,87840.0,0.0113922]
[1766886466150,0.0113902,87856.0,87840.0,0.0113922]
[1766886466854,0.0113902,87856.0,87837.0,0.0113926]
[1766886468458,0.06128097,87854.0,87837.0,0.0113926]
[1766886470459,0.11420329,87850.0,87837.0,0.0113926]
[1766886470651,0.02531228,87849.0,87837.0,0.0113926]
[1766886470851,0.02531228,87848.0,87837.0,0.0113926]
[1766886471051,0.02531228,87847.0,87837.0,0.0113926]
[1766886471253,0.02531228,87846.0,87837.0,0.0113926]
[1766886471452,0.02531228,87845.0,87837.0,0.0113926]
[1766886471758,0.02531228,87844.0,87831.0,0.057]
[1766886471952,0.02531228,87843.0,87832.0,0.06776]
[1766886472152,0.02531228,87842.0,87832.0,0.06776]
[1766886472357,0.02531228,87841.0,87832.0,0.06776]
[1766886472563,0.02531228,87840.0,87832.0,0.06776]
[1766886472765,0.02531228,87839.0,87832.0,0.06776]
[1766886472956,8e-08,87838.0,87832.0,0.06776]
[1766886473151,0.12559429,87850.0,87833.0,0.0113931]
[1766886474362,0.11420329,87850.0,87833.0,0.0113931]
[1766886478268,0.11420329,87850.0,87835.0,0.0113928]
[1766886481065,0.11420329,87850.0,87837.0,0.0113926]
[1766886481363,0.057,87852.0,87832.0,0.12476]
[1766886481560,0.057,87852.0,87842.0,0.011392]
[1766886484870,0.02525652,87851.0,87842.0,0.011392]
[1766886485063,0.02525652,87850.0,87842.0,0.011392]
[1766886485361,0.02525652,87849.0,87842.0,0.011392]
[1766886485660,0.02525652,87848.0,87842.0,0.011392]
[1766886485861,0.02525652,87847.0,87842.0,0.011392]
[1766886486061,0.02525652,87846.0,87842.0,0.011392]
[1766886486371,0.02525652,87845.0,87842.0,0.011392]
[1766886486559,2e-08,87844.0,87842.0,0.011392]
[1766886486760,0.057,87852.0,87842.0,0.011392]
[1766886487158,9e-08,87854.0,87850.0,0.0113909]
[1766886487366,0.00017072,87858.0,87840.0,0.11420329]
[1766886487570,0.05717072,87858.0,87840.0,0.11420329]
[1766886487770,0.05717072,87858.0,87852.0,0.0113906]
[1766886488161,0.06128097,87863.0,87852.0,0.0113906]
[1766886488361,0.12476,87862.0,87852.0,0.0113906]
[1766886488558,0.01308829,87862.0,87850.0,0.11420329]
[1766886488762,0.057,87864.0,87859.0,0.0113897]
[1766886489069,0.0113875,87877.0,87854.0,0.11420329]
[1766886489070,0.12476,87873.0,87854.0,0.11420329]
[1766886489266,0.00017072,87872.0,87861.0,0.0113894]
[1766886497577,0.00017072,87872.0,87863.0,0.0113892]
[1766886498569,0.02503785,87871.0,87863.0,0.0113892]
[1766886498770,0.02503785,87870.0,87863.0,0.0113892]
[1766886499074,0.02503785,87869.0,87863.0,0.0113892]
[1766886499274,0.02503786,87868.0,87863.0,0.0113892]
[1766886499475,6e-08,87867.0,87863.0,0.0113892]
[1766886499676,0.00017072,87872.0,87863.0,0.0113892]
[1766886503181,0.00017072,87872.0,87855.0,0.00017072]
[1766886503381,0.00017072,87872.0,87856.0,0.0113902]
[1766886503983,0.00017072,87872.0,87859.0,0.0113898]
[1766886509485,0.00017072,87872.0,87858.0,0.057]
[1766886509884,0.0113884,87870.0,87858.0,0.057]
[1766886510386,0.00017072,87872.0,87858.0,0.057]
[1766886511489,0.02474125,87871.0,87858.0,0.057]
[1766886511686,0.02474125,87870.0,87858.0,0.057]
[1766886511890,0.02474125,87869.0,87858.0,0.057]
[1766886512086,0.02474125,87868.0,87858.0,0.057]
[1766886512285,0.02474125,87867.0,87858.0,0.057]
[1766886512485,0.00017072,87872.0,87858.0,0.057]
[1766886523508,0.00017072,87872.0,87855.0,0.01156092]
[1766886523714,0.0113885,87870.0,87856.0,0.057]
[1766886524615,0.02469097,87869.0,87856.0,0.057]
[1766886524808,0.02469097,87868.0,87856.0,0.057]
[1766886525008,0.02469097,87867.0,87856.0,0.057]
[1766886525207,0.02469097,87866.0,87856.0,0.057]
[1766886525409,0.02469097,87865.0,87856.0,0.057]
[1766886525617,0.02469097,87864.0,87856.0,0.057]
[1766886525816,0.02469097,87863.0,87856.0,0.057]
[1766886526020,0.02469097,87862.0,87856.0,0.057]
[1766886526211,0.02469097,87861.0,87856.0,0.057]
[1766886526411,0.02469097,87860.0,87856.0,0.057]
[1766886526711,0.02469097,87859.0,87856.0,0.057]
[1766886527011,0.02469097,87858.0,87856.0,0.057]
[1766886527211,0.0113885,87870.0,87856.0,0.057]
[1766886527412,0.02468984,87869.0,87856.0,0.057]
[1766886527618,0.02468984,87868.0,87856.0,0.057]
[1766886527805,0.02468984,87867.0,87856.0,0.057]
[1766886528117,0.02468984,87866.0,87856.0,0.057]
[1766886528318,0.02468984,87865.0,87856.0,0.057]
[1766886528517,0.02468984,87864.0,87856.0,0.057]
[1766886528717,0.02468984,87863.0,87856.0,0.057]
[1766886528919,0.02468984,87862.0,87856.0,0.057]
[1766886529216,0.02468984,87861.0,87856.0,0.057]
[1766886529415,0.02468984,87860.0,87856.0,0.057]
[1766886529616,0.02468984,87859.0,87856.0,0.057]
[1766886529815,0.02468984,87858.0,87856.0,0.057]
[1766886530016,0.06145169,87872.0,87856.0,0.057]
[1766886530217,0.02468932,87871.0,87856.0,0.0683901]
[1766886530411,0.02468932,87870.0,87856.0,0.0683901]
[1766886530612,0.02468932,87869.0,87856.0,0.0683901]
[1766886530811,0.02468932,87868.0,87856.0,0.0683901]
[1766886531021,0.02468932,87867.0,87856.0,0.0683901]
[1766886531221,0.02468932,87866.0,87856.0,0.0683901]
[1766886531418,0.02468932,87865.0,87856.0,0.0683901]
[1766886531619,0.02468932,87864.0,87856.0,0.0683901]
[1766886531819,0.02468932,87863.0,87856.0,0.0683901]
[1766886532018,0.02468932,87862.0,87856.0,0.0683901]
[1766886532219,0.02468932,87861.0,87856.0,0.0683901]
[1766886532420,0.02468932,87860.0,87856.0,0.0683901]
[1766886532616,2e-08,87859.0,87856.0,0.0683901]
[1766886532816,0.06145169,87872.0,87856.0,0.0683901]
[1766886533423,0.06145169,87872.0,87856.0,0.0113901]
[1766886533629,0.06145169,87872.0,87857.0,0.057]
[1766886534624,0.00017072,87872.0,87857.0,0.057]
[1766886544531,0.02443698,87871.0,87857.0,0.057]
[1766886544832,0.02443698,87870.0,87857.0,0.057]
[1766886545031,0.02443698,87869.0,87857.0,0.057]
[1766886545222,0.02443698,87868.0,87857.0,0.057]
[1766886545422,0.02443698,87867.0,87857.0,0.057]
[1766886545623,0.02443698,87866.0,87857.0,0.057]
[1766886545818,0.02443698,87865.0,87857.0,0.057]
[1766886546025,0.02443698,87864.0,87857.0,0.057]
[1766886546324,0.02443698,87863.0,87857.0,0.057]
[1766886546524,0.02443698,87862.0,87857.0,0.057]
[1766886546825,0.02443698,87861.0,87857.0,0.057]
[1766886547130,0.02443698,87860.0,87857.0,0.057]
[1766886547331,8e-08,87859.0,87857.0,0.057]
[1766886547532,0.00017072,87872.0,87857.0,0.057]
[1766886553642,0.06128097,87871.0,87857.0,0.057]
[1766886558445,0.06128097,87870.0,87857.0,0.057]
[1766886560944,0.07266947,87870.0,87857.0,0.057]
[1766886561146,0.0113886,87868.0,87857.0,0.057]
[1766886561337,0.02432934,87867.0,87857.0,0.057]
[1766886561738,0.02432934,87867.0,87855.0,0.04730162]
[1766886561739,0.011389,87865.0,87855.0,0.04730162]
[1766886562038,0.02432934,87864.0,87850.0,0.057]
[1766886562238,0.02432934,87863.0,87850.0,0.057]
[1766886562435,0.02432934,87862.0,87850.0,0.057]
[1766886562641,0.057,87866.0,87851.0,0.0130882]
[1766886563044,0.057,87866.0,87850.0,0.057]
[1766886563345,0.057,87866.0,87851.0,0.0130882]
[1766886563848,0.057,87866.0,87850.0,0.057]
[1766886564149,0.057,87866.0,87851.0,0.0130882]
[1766886564640,0.057,87866.0,87850.0,0.057]
[1766886564838,0.057,87866.0,87851.0,0.0130882]
[1766886565237,0.057,87866.0,87850.0,0.057]
[1766886565433,0.057,87866.0,87851.0,0.0130882]
[1766886566143,0.057,87866.0,87850.0,0.057]
[1766886566445,0.057,87866.0,87851.0,0.0130882]
[1766886566837,0.0683889,87866.0,87850.0,0.057]
[1766886567032,0.057,87866.0,87851.0,0.0130882]
[1766886567238,0.057,87866.0,87851.0,0.0244789]
[1766886567437,0.057,87866.0,87851.0,0.0113907]
[1766886568048,0.057,87866.0,87852.0,0.0130882]